bitfinex-derivatives/quotes_BTCF0:USTF0_20250814
["timestamp","ask_amount","ask_price","bid_price","bid_amount"]
[1755184102658,0.76088542,118870.0,118860.0,2.02216]
[1755184102858,0.76088542,118870.0,118860.0,2.18925]
[1755184103560,0.76088542,118870.0,118860.0,2.19125]
[1755184104454,0.7696661,118870.0,118860.0,2.19125]
[1755184104956,0.4088661,118870.0,118860.0,2.23745]
[1755184105154,0.1158552,118870.0,118860.0,2.93442612]
[1755184105350,0.02300002,118870.0,118860.0,2.93242612]
[1755184105551,0.02300002,118870.0,118860.0,3.29322612]
[1755184105858,0.02300002,118870.0,118860.0,3.29222612]
[1755184106055,0.02300002,118870.0,118860.0,3.29302612]
[1755184106756,0.10707422,118870.0,118860.0,2.93142612]
[1755184106947,0.02300002,118870.0,118860.0,3.29302612]
[1755184107147,0.02300002,118870.0,118860.0,3.37710792]
[1755184107450,0.10707472,118870.0,118860.0,2.93142612]
[1755184107852,0.51558472,118870.0,118860.0,2.93142612]
[1755184108059,0.10707472,118870.0,118860.0,2.93142612]
[1755184108261,0.4925847,118870.0,118860.0,2.93142612]
[1755184108561,0.51581899,118870.0,118860.0,2.23445]
[1755184108759,0.74902899,118870.0,118860.0,2.19057]
[1755184109162,0.74902899,118870.0,118860.0,2.23577]
[1755184109863,0.51581899,118870.0,118860.0,2.23577]
[1755184110063,0.51581899,118870.0,118860.0,2.93274612]
[1755184110466,0.15501929,118870.0,118860.0,2.93274612]
[1755184110767,0.02323429,118870.0,118860.0,2.93274612]
[1755184110957,0.02323429,118870.0,118860.0,3.37842792]
[1755184111453,0.19198372,118890.0,118870.0,0.2522204]
[1755184111653,0.19198372,118890.0,118880.0,1.74168612]
[1755184112066,0.10792092,118890.0,118880.0,1.82575412]
[1755184112269,0.47737384,118900.0,118890.0,0.18547]
[1755184112570,0.55277472,118900.0,118890.0,0.88244612]
[1755184112754,0.55277472,118900.0,118890.0,0.18347]
[1755184112950,0.78598472,118900.0,118890.0,0.15671]
[1755184113564,0.78598472,118900.0,118890.0,0.15471]
[1755184114069,0.0840609,118890.0,118880.0,0.69697612]
[1755184114368,0.131778,118880.0,118870.0,0.38756]
[1755184114570,0.131778,118880.0,118870.0,1.245]
[1755184114756,0.131778,118880.0,118870.0,1.94197612]
[1755184114757,0.04771,118880.0,118870.0,1.94197612]
[1755184114957,0.2158378,118890.0,118880.0,0.02676]
[1755184115167,0.2158378,118890.0,118880.0,0.72373612]
[1755184115367,0.2158378,118890.0,118880.0,0.72473612]
[1755184115558,0.2158378,118890.0,118880.0,0.88344612]
[1755184115958,0.2158378,118890.0,118880.0,0.88544612]
[1755184117766,0.8938915,118900.0,118880.0,0.78404392]
[1755184117973,0.0840536,118900.0,118890.0,1.82190682]
[1755184118267,0.0840536,118900.0,118890.0,1.73784612]
[1755184118567,0.47442294,118910.0,118900.0,0.2695236]
[1755184118876,0.06591294,118910.0,118900.0,0.96649972]
[1755184119065,0.0840405,118920.0,118900.0,1.33669212]
[1755184119260,0.2521251,118920.0,118910.0,2.09856612]
[1755184119460,0.2521251,118920.0,118910.0,1.73776612]
[1755184119665,0.36617947,118920.0,118910.0,2.09856612]
[1755184119861,0.36617947,118920.0,118910.0,1.73676612]
[1755184120066,0.37489445,118920.0,118910.0,1.73676612]
[1755184120267,0.37489445,118920.0,118910.0,1.03979]
[1755184120468,0.37589445,118920.0,118910.0,2.09756612]
[1755184120667,0.37589445,118920.0,118910.0,1.73676612]
[1755184120873,0.36717947,118920.0,118910.0,1.73676612]
[1755184121169,0.36717947,118920.0,118910.0,1.03979]
[1755184121472,0.60038947,118920.0,118910.0,1.03979]
[1755184121768,0.60999365,118920.0,118910.0,1.01303]
[1755184121976,0.60999365,118920.0,118910.0,1.71000612]
[1755184122165,0.97079365,118920.0,118910.0,1.01303]
[1755184122665,0.97079365,118920.0,118910.0,1.71000612]
[1755184122869,0.60138947,118920.0,118910.0,1.01303]
[1755184123066,0.51734667,118920.0,118910.0,1.03979]
[1755184123269,0.11605437,118920.0,118910.0,1.73676612]
[1755184123473,0.13948927,118920.0,118910.0,1.82081232]
[1755184123674,0.09177927,118920.0,118910.0,1.82081232]
[1755184123969,0.17581847,118920.0,118910.0,1.73676612]
[1755184124274,0.09177927,118920.0,118910.0,2.09756612]
[1755184124475,0.09177927,118920.0,118910.0,2.18161192]
[1755184124673,0.09177927,118920.0,118910.0,2.19018603]
[1755184124873,0.06021092,118930.0,118920.0,0.09807]
[1755184125074,0.06021092,118930.0,118920.0,2.10240482]
[1755184126072,0.7292631,118940.0,118920.0,2.08837352]
[1755184126371,0.002,118930.0,118920.0,1.4894674]
[1755184126575,0.086032,118930.0,118920.0,1.4054287]
[1755184126770,0.088032,118930.0,118920.0,1.32139]
[1755184127171,0.15595051,118930.0,118920.0,1.405429]
[1755184127375,0.15595051,118930.0,118920.0,2.01836612]
[1755184128379,0.15395051,118930.0,118920.0,2.01836612]
[1755184129074,0.07091851,118930.0,118920.0,2.01836612]
[1755184129278,0.07091851,118930.0,118920.0,2.10240522]
[1755184129481,0.15495051,118930.0,118920.0,2.01836612]
[1755184130266,0.15495051,118930.0,118920.0,1.32139]
[1755184130788,0.20266051,118930.0,118920.0,2.01836612]
[1755184132267,0.98260051,118930.0,118920.0,0.21726]
[1755184132577,0.98260051,118930.0,118920.0,1.08646]
[1755184133076,0.98340051,118930.0,118920.0,0.8692]
[1755184133282,0.55098324,118920.0,118910.0,0.21726]
[1755184133583,0.91178324,118920.0,118910.0,1.08618]
[1755184133781,0.91258324,118920.0,118910.0,1.08618]
[1755184134082,0.5478161,118910.0,118900.0,0.07131]
[1755184134383,0.7208761,118910.0,118900.0,0.86976]
[1755184134687,0.7208761,118910.0,118900.0,0.94107]
[1755184135073,0.7208761,118910.0,118900.0,0.86976]
[1755184135482,0.7200761,118910.0,118900.0,0.86976]
[1755184135871,0.7200761,118910.0,118900.0,0.87076]
[1755184136183,0.7200761,118910.0,118900.0,0.94207]
[1755184137585,0.7200761,118910.0,118900.0,1.66580612]
[1755184138374,0.7200761,118910.0,118900.0,1.63904612]
[1755184139072,0.04681,118910.0,118900.0,1.74985912]
[1755184139587,0.071356,118910.0,118900.0,1.74985912]
[1755184140575,0.071356,118910.0,118900.0,1.74985892]
[1755184140776,0.071356,118910.0,118900.0,1.0528828]
[1755184140777,0.024546,118910.0,118900.0,1.0528828]
[1755184140979,0.024546,118910.0,118900.0,2.11065892]
[1755184141178,0.024546,118910.0,118900.0,2.11145892]
[1755184141584,9.414e-05,118920.0,118900.0,2.11145892]
[1755184141887,0.06791851,118930.0,118920.0,0.0840387]
[1755184142180,0.04681,118940.0,118930.0,0.1574592]
[1755184142371,0.11322379,118940.0,118930.0,0.85443532]
[1755184142572,0.7200545,118940.0,118930.0,0.07131]
[1755184142779,0.72861358,118940.0,118930.0,0.07131]
[1755184142977,0.7200545,118940.0,118930.0,0.07131]
[1755184143180,0.7200545,118940.0,118930.0,0.76728612]
[1755184143484,0.7200545,118940.0,118930.0,0.07031]
[1755184143670,0.72866426,118940.0,118930.0,0.07031]
[1755184143875,0.4916345,118940.0,118930.0,0.76628612]
[1755184144077,0.4916345,118940.0,118930.0,0.76840612]
[1755184144379,0.7200545,118940.0,118930.0,0.06931]
[1755184144576,0.0840316,118930.0,118910.0,1.06652674]
[1755184144884,0.0840457,118910.0,118900.0,1.52376]
[1755184145194,0.27165819,118910.0,118900.0,3.09105612]
[1755184145480,0.11334819,118910.0,118900.0,3.17722892]
[1755184145783,0.2989364,118920.0,118900.0,3.17722892]
[1755184145980,0.4572464,118920.0,118910.0,0.76840612]
[1755184146186,0.4572464,118920.0,118910.0,0.76628612]
[1755184146484,0.5273564,118920.0,118910.0,0.76628612]
[1755184146687,0.5273564,118920.0,118910.0,0.93851]
[1755184146987,0.8881564,118920.0,118910.0,1.63548612]
[1755184147184,0.8881564,118920.0,118910.0,0.93851]
[1755184147379,0.8881564,118920.0,118910.0,1.63548612]
[1755184148289,0.8881564,118920.0,118910.0,1.63748612]
[1755184148880,0.04681,118920.0,118910.0,2.08745172]
[1755184149094,0.1308415,118930.0,118920.0,0.07143]
[1755184149284,0.04681,118930.0,118920.0,0.85244472]
[1755184149477,0.50030181,118940.0,118930.0,0.06931]
[1755184149689,0.4916345,118940.0,118930.0,1.63632612]
[1755184149990,0.6499445,118940.0,118930.0,1.63420612]
[1755184150481,0.7200545,118940.0,118930.0,1.63420612]
[1755184151085,0.7200545,118940.0,118930.0,0.93723]
[1755184152275,0.7200545,118940.0,118930.0,1.63420612]
[1755184152881,0.7200545,118940.0,118930.0,1.63520612]
[1755184153889,0.74454448,118940.0,118930.0,1.63520612]
[1755184154189,0.81101212,118940.0,118930.0,0.86792]
[1755184154386,0.81101212,118940.0,118930.0,1.63420612]
[1755184154604,0.58259212,118940.0,118930.0,1.63632612]
[1755184154792,0.49856762,118940.0,118930.0,1.72035752]
[1755184154987,0.13776762,118940.0,118930.0,1.72035752]
[1755184155291,0.19797854,118940.0,118930.0,2.08115752]
[1755184155593,0.22179212,118940.0,118930.0,1.99712612]
[1755184155995,0.22179212,118940.0,118930.0,2.08115772]
[1755184156194,0.22179212,118940.0,118930.0,1.3841816]
[1755184156490,0.22179212,118940.0,118930.0,1.99712612]
[1755184156889,0.13776762,118940.0,118930.0,2.08115772]
[1755184157191,0.22179212,118940.0,118930.0,2.08115772]
[1755184157399,0.22179212,118940.0,118930.0,0.43111]
[1755184157588,0.45021212,118940.0,118930.0,0.93575]
[1755184157894,0.81101212,118940.0,118930.0,0.93575]
[1755184158590,0.81101212,118940.0,118930.0,0.07031]
[1755184158785,0.81101212,118940.0,118930.0,0.94131]
[1755184160191,1.87673916,118940.0,118930.0,0.87056]
[1755184160492,1.79694824,118940.0,118930.0,0.82056]
[1755184160799,1.79694824,118940.0,118930.0,0.74556]
[1755184160800,1.99694824,118940.0,118930.0,0.74556]
[1755184160982,2.07223748,118940.0,118930.0,0.52056]
[1755184161184,0.359277,118910.0,118900.0,1.34198]
[1755184161500,0.3124811,118890.0,118880.0,0.2837]
[1755184161687,0.3124811,118890.0,118880.0,1.1547]
[1755184161688,0.74458108,118890.0,118880.0,1.1547]
[1755184161887,0.46935108,118890.0,118880.0,1.1547]
[1755184162087,0.10855108,118890.0,118880.0,1.1547]
[1755184162494,0.10855108,118890.0,118880.0,1.85167612]
[1755184162793,0.02448998,118890.0,118880.0,1.85167612]
[1755184163002,0.02448998,118890.0,118880.0,1.93574472]
[1755184163489,0.10855158,118890.0,118880.0,1.85167612]
[1755184163689,0.10855158,118890.0,118880.0,1.93774472]
[1755184163985,0.10855158,118890.0,118880.0,1.85367612]
[1755184164193,0.02448998,118890.0,118880.0,1.1567]
[1755184164388,0.10855158,118890.0,118880.0,1.85567612]
[1755184164588,0.10855158,118890.0,118880.0,1.1587]
[1755184164782,0.10855158,118890.0,118880.0,1.93974472]
[1755184164989,0.02448998,118890.0,118880.0,1.93974472]
[1755184165186,0.02448998,118890.0,118880.0,1.94054472]
[1755184165381,0.02448998,118890.0,118880.0,2.30134472]
[1755184166599,0.4448509,118910.0,118900.0,0.3648845]
[1755184166895,0.4448509,118910.0,118900.0,1.93298062]
[1755184167282,0.3608,118910.0,118900.0,1.93298062]
[1755184167788,0.3608,118920.0,118910.0,0.3656771]
[1755184167990,0.6129103,118930.0,118920.0,0.08404]
[1755184168193,0.6129103,118930.0,118920.0,1.84792612]
[1755184168390,0.444833,118930.0,118920.0,1.84792612]
[1755184168592,0.444833,118930.0,118920.0,1.93196612]
[1755184168890,0.42810049,118940.0,118930.0,0.28083]
[1755184169095,0.36760574,118940.0,118930.0,0.97680612]
[1755184169798,0.96446574,118940.0,118930.0,0.97680612]
[1755184169991,0.96446574,118940.0,118930.0,0.27983]
[1755184170194,0.369133,118930.0,118920.0,1.80194612]
[1755184170490,0.369133,118930.0,118920.0,1.10497]
[1755184170693,0.369133,118930.0,118920.0,1.04242]
[1755184170989,0.729933,118930.0,118920.0,1.10497]
[1755184171494,0.08404,118920.0,118910.0,2.07817612]
[1755184171692,0.72994,118920.0,118910.0,2.31383]
[1755184171999,0.72994,118920.0,118910.0,3.01080612]
[1755184172498,0.72994,118920.0,118910.0,3.09485322]
[1755184172683,0.6129108,118930.0,118910.0,3.34591372]
[1755184172684,0.3608,118930.0,118910.0,3.34591372]
[1755184172890,0.3608,118930.0,118920.0,1.06184612]
[1755184173087,0.3608,118930.0,118920.0,0.36487]
[1755184173295,0.35156764,118940.0,118930.0,0.3648629]
[1755184173486,0.06646764,118940.0,118930.0,1.93103902]
[1755184173691,0.45323894,118950.0,118940.0,0.28083]
[1755184173692,0.90638564,118950.0,118940.0,0.28083]
[1755184173893,0.90638564,118950.0,118940.0,0.97780612]
[1755184174090,0.73833894,118950.0,118940.0,0.97780612]
[1755184175693,0.80552012,118950.0,118940.0,0.97780612]
[1755184176593,0.80552012,118950.0,118940.0,0.28083]
[1755184176790,0.80552012,118950.0,118930.0,0.8692]
[1755184176791,0.3691258,118940.0,118930.0,0.1723]
[1755184177094,0.7299258,118940.0,118930.0,1.03946]
[1755184177697,0.7299258,118940.0,118930.0,1.14799]
[1755184178495,0.75426112,118940.0,118930.0,1.14799]
[1755184178996,0.75426112,118940.0,118930.0,1.14899]
[1755184179395,0.75426112,118940.0,118930.0,1.84596612]
[1755184179894,0.75426112,118940.0,118930.0,1.14899]
[1755184180404,0.75426112,118940.0,118930.0,1.84596612]
[1755184180601,0.75426112,118940.0,118930.0,1.14899]
[1755184181203,0.75426112,118940.0,118930.0,0.001]
[1755184181400,1.58203724,118940.0,118930.0,0.001]
[1755184181594,1.58203724,118940.0,118930.0,0.86944]
[1755184181998,0.88506112,118940.0,118930.0,0.86944]
[1755184182199,0.88426112,118940.0,118930.0,0.86944]
[1755184182594,0.75426112,118940.0,118930.0,0.86944]
[1755184182802,0.75426112,118940.0,118930.0,0.86844]
[1755184183097,0.75426112,118940.0,118930.0,1.04074]
[1755184183300,0.75426112,118940.0,118930.0,0.86844]
[1755184183801,0.75426112,118940.0,118930.0,1.84624612]
[1755184184303,0.75426112,118940.0,118930.0,1.14927]
[1755184184704,0.75426112,118940.0,118930.0,1.84624612]
[1755184185008,0.75426112,118940.0,118930.0,1.14927]
[1755184185206,0.0840403,118920.0,118910.0,1.39777]
[1755184185405,0.75427562,118920.0,118910.0,2.02972]
[1755184185606,0.75427562,118920.0,118910.0,2.31055]
[1755184185903,0.0840615,118890.0,118880.0,0.80550612]
[1755184186310,0.1331015,118890.0,118880.0,1.67262612]
[1755184186510,0.4939015,118890.0,118880.0,1.84492612]
[1755184186699,0.73856369,118890.0,118880.0,1.14795]
[1755184187211,0.73856369,118890.0,118880.0,1.14995]
[1755184187406,0.91520049,118890.0,118880.0,0.002]
[1755184187605,1.637313,118890.0,118880.0,0.86896]
[1755184187908,1.805545,118890.0,118880.0,0.87196]
[1755184188506,1.805545,118890.0,118880.0,0.82196]
[1755184188709,2.005545,118890.0,118880.0,0.003]
[1755184188908,0.2522812,118850.0,118840.0,0.1723]
[1755184189210,0.8981812,118850.0,118840.0,1.10213]
[1755184189414,0.8981812,118850.0,118840.0,1.79910612]
[1755184189602,0.8491412,118850.0,118840.0,1.14811]
[1755184189801,0.5289854,118850.0,118840.0,1.84508612]
[1755184190609,0.4448911,118850.0,118840.0,1.84708612]
[1755184190914,0.4448898,118850.0,118840.0,1.85208612]
[1755184191410,0.4448898,118850.0,118840.0,1.85288612]
[1755184191715,0.3608,118850.0,118840.0,1.93698292]
[1755184192222,0.8981365,118870.0,118840.0,2.18514302]
[1755184192426,0.8981365,118870.0,118860.0,0.97780612]
[1755184192627,0.8981365,118870.0,118860.0,1.84644612]
[1755184193229,0.8490965,118870.0,118860.0,1.84644612]
[1755184193434,0.446876,118870.0,118860.0,1.84644612]
[1755184194128,0.3628,118870.0,118860.0,1.84644612]
[1755184194316,0.3658,118870.0,118860.0,1.84644612]
[1755184194626,0.4498756,118870.0,118860.0,1.84644612]
[1755184194822,0.3658,118870.0,118860.0,1.84644612]
[1755184195526,0.3648,118870.0,118860.0,1.84644612]
[1755184196028,0.3648,118870.0,118860.0,1.93132882]
[1755184196226,0.3638,118870.0,118860.0,1.93232882]
[1755184196725,0.3608,118870.0,118860.0,1.93232882]
[1755184196925,0.4448755,118870.0,118860.0,1.84844612]
[1755184197132,0.6847455,118870.0,118860.0,1.84592612]
[1755184197521,0.4448755,118870.0,118860.0,1.84592612]
[1755184197722,0.3608,118870.0,118860.0,1.93000872]
[1755184197922,0.4448755,118870.0,118860.0,1.84592612]
[1755184198730,0.4448755,118870.0,118860.0,1.14895]
[1755184198929,0.4448755,118870.0,118860.0,1.84592612]
[1755184199635,0.7335555,118870.0,118860.0,0.28283]
[1755184199831,0.7335555,118870.0,118860.0,1.14675]
[1755184200933,0.6847455,118870.0,118860.0,1.84372612]
[1755184201933,0.6847455,118870.0,118860.0,1.14675]
[1755184202135,0.7335555,118870.0,118860.0,1.84372612]
[1755184202333,0.6847455,118870.0,118860.0,1.84372612]
[1755184203030,0.7335555,118870.0,118860.0,1.14675]
[1755184203326,0.7335555,118870.0,118860.0,0.91058]
[1755184203537,1.44133162,118870.0,118860.0,0.86336]
[1755184204546,1.60958763,118870.0,118860.0,0.86208]
[1755184204933,1.60958763,118870.0,118860.0,0.61108]
[1755184204934,1.80958763,118870.0,118860.0,0.61108]
[1755184205143,0.0840897,118850.0,118840.0,0.31723]
[1755184205334,1.0082097,118850.0,118840.0,0.91057]
[1755184206141,1.0082097,118850.0,118840.0,1.07343]
[1755184206444,0.9848397,118850.0,118840.0,1.14744]
[1755184207127,1.01106649,118850.0,118840.0,1.84441612]
[1755184207328,1.13942426,118850.0,118780.0,0.23511351]
[1755184207532,0.1682762,118790.0,118770.0,1.16344]
[1755184207731,0.1682762,118790.0,118760.0,0.3608]
[1755184207732,0.0841675,118740.0,118730.0,1.52434]
[1755184207928,0.2525002,118750.0,118730.0,3.72971411]
[1755184208138,0.2525002,118750.0,118740.0,0.06255]
[1755184208139,0.6133002,118750.0,118740.0,0.06255]
[1755184208336,0.6133002,118750.0,118740.0,0.92559]
[1755184208531,0.3608,118750.0,118740.0,0.92639]
[1755184208734,0.3608,118750.0,118740.0,1.56081612]
[1755184209129,0.06633163,118750.0,118740.0,1.56081612]
[1755184209334,0.613272,118760.0,118740.0,1.62336612]
[1755184209540,0.62196888,118770.0,118750.0,0.97311612]
[1755184209839,0.2524266,118780.0,118770.0,0.27534]
[1755184210040,0.444932,118790.0,118780.0,0.27534]
[1755184210344,0.444932,118790.0,118780.0,1.83491612]
[1755184210345,0.11023897,118790.0,118780.0,1.83491612]
[1755184210538,0.47965204,118790.0,118780.0,1.13794]
[1755184210738,0.76833204,118790.0,118780.0,1.13794]
[1755184211238,0.47103897,118790.0,118780.0,1.83571612]
[1755184211444,0.47103897,118790.0,118780.0,1.83491612]
[1755184211740,0.09352669,118790.0,118780.0,1.91985522]
[1755184211939,0.3608,118800.0,118790.0,0.359472]
[1755184212146,0.47101494,118800.0,118790.0,0.97131612]
[1755184212438,0.47101494,118800.0,118790.0,0.27434]
[1755184213247,0.71088494,118800.0,118790.0,0.27434]
[1755184213539,0.71088494,118800.0,118790.0,1.77434]
[1755184213540,0.47101494,118800.0,118790.0,1.77434]
[1755184214047,0.47201494,118800.0,118790.0,1.77434]
[1755184214233,0.47401494,118800.0,118790.0,1.77434]
[1755184214635,0.02909004,118800.0,118790.0,2.91704812]
[1755184214836,0.4449194,118810.0,118790.0,3.45367212]
[1755184215141,0.2523267,118830.0,118820.0,0.22441]
[1755184215333,0.5289978,118840.0,118820.0,2.00389452]
[1755184215539,0.5289978,118840.0,118830.0,0.97131612]
[1755184215734,0.5289978,118840.0,118830.0,1.05541982]
[1755184215944,0.4448967,118840.0,118830.0,0.97131612]
[1755184216348,0.4448967,118840.0,118830.0,1.05541982]
[1755184216647,0.58947895,118850.0,118840.0,0.27434]
[1755184216848,0.58947895,118850.0,118840.0,1.83555612]
[1755184217347,0.58947895,118850.0,118840.0,1.13858]
[1755184217348,0.87815895,118850.0,118840.0,1.13858]
[1755184217738,1.00406782,118850.0,118840.0,0.86424]
[1755184217937,1.08816392,118850.0,118830.0,0.27434]
[1755184218145,0.7335766,118840.0,118830.0,0.27434]
[1755184218345,0.7335766,118840.0,118830.0,1.13778]
[1755184218545,0.7335766,118840.0,118830.0,1.07623]
[1755184218846,1.55135272,118840.0,118830.0,0.86344]
[1755184219149,0.7335766,118840.0,118830.0,0.86344]
[1755184219343,0.7335766,118840.0,118830.0,1.07623]
[1755184219543,0.7335766,118840.0,118830.0,0.86344]
[1755184220251,0.9235725,118840.0,118830.0,0.86344]
[1755184220438,0.9135725,118840.0,118830.0,0.86444]
[1755184220842,0.9143725,118840.0,118830.0,0.001]
[1755184221154,0.9143725,118840.0,118820.0,0.16286]
[1755184221155,0.0841037,118830.0,118820.0,0.16286]
[1755184221351,0.541048,118810.0,118800.0,0.27434]
[1755184221555,0.8177243,118810.0,118800.0,1.13782]
[1755184221852,0.8177243,118810.0,118800.0,1.07627]
[1755184222746,0.8177243,118810.0,118800.0,1.13782]
[1755184223143,0.8177243,118810.0,118800.0,1.13882]
[1755184223338,0.8177243,118810.0,118800.0,0.21379]
[1755184223543,0.9377243,118810.0,118800.0,0.86388]
[1755184223744,0.9377243,118810.0,118800.0,0.86588]
[1755184224039,0.8177243,118810.0,118800.0,0.86588]
[1755184224453,0.8177243,118810.0,118800.0,1.0775]
[1755184224855,1.1785243,118810.0,118800.0,1.0755]
[1755184225153,1.1785243,118810.0,118800.0,0.86288]
[1755184226246,1.1785243,118810.0,118800.0,1.0745]
[1755184226851,1.21325861,118810.0,118800.0,1.0745]
[1755184227749,1.21325861,118810.0,118800.0,1.13605]
[1755184228352,1.21325861,118810.0,118800.0,1.0745]
[1755184229349,1.21325861,118810.0,118800.0,1.13605]
[1755184229653,1.21325861,118810.0,118800.0,1.0745]
[1755184230054,1.28854785,118810.0,118800.0,1.0745]
[1755184230454,0.084132,118790.0,118780.0,7.542e-05]
[1755184230647,1.80904834,118790.0,118780.0,7.542e-05]
[1755184230847,1.1721902,118790.0,118780.0,1.13424542]
[1755184231548,1.1721902,118790.0,118780.0,1.13524542]
[1755184232253,1.28736146,118790.0,118780.0,0.86207542]
[1755184232453,1.98433758,118790.0,118780.0,0.79385763]
[1755184232650,1.98433758,118790.0,118780.0,0.79485763]
[1755184232850,2.09204628,118790.0,118780.0,0.79485763]
[1755184233150,2.15855646,118790.0,118780.0,0.002]
[1755184233360,2.32692447,118790.0,118780.0,0.002]
[1755184234350,0.0849391,118780.0,118770.0,0.86076]
[1755184234653,0.0841603,118750.0,118740.0,0.27317]
[1755184234856,0.75130052,118750.0,118740.0,1.13329]
[1755184235059,1.44827664,118750.0,118740.0,1.07186]
[1755184235355,1.55827664,118750.0,118740.0,0.86024]
[1755184235550,0.75130052,118750.0,118740.0,0.86024]
[1755184235951,0.75130052,118750.0,118740.0,0.86424]
[1755184236152,0.75130052,118750.0,118740.0,1.07586]
[1755184236354,0.75130052,118750.0,118740.0,0.86536721]
[1755184236544,1.63854805,118750.0,118740.0,0.86536721]
[1755184236942,1.64001448,118750.0,118740.0,0.86536721]
[1755184237154,1.55665418,118750.0,118700.0,0.3608]
[1755184237348,0.3368061,118700.0,118690.0,0.27317]
[1755184237549,0.3368061,118700.0,118690.0,1.01293]
[1755184237550,1.00394632,118700.0,118690.0,1.01293]
[1755184237748,1.00394632,118700.0,118690.0,2.51293]
[1755184237949,0.91974352,118700.0,118690.0,2.51293]
[1755184238152,0.63954352,118700.0,118690.0,2.51293]
[1755184238353,0.27874352,118700.0,118690.0,2.51293]
[1755184238552,0.38694022,118700.0,118690.0,2.52273]
[1755184238752,0.38694022,118700.0,118690.0,3.30390902]
[1755184238951,0.02614022,118700.0,118690.0,3.66870902]
[1755184239155,0.2525736,118710.0,118700.0,0.27317]
[1755184239358,0.95992084,118710.0,118700.0,1.13605]
[1755184239749,1.07015361,118710.0,118700.0,1.13605]
[1755184239950,1.07015361,118710.0,118700.0,1.0745]
[1755184240151,1.07015361,118710.0,118700.0,1.13605]
[1755184241056,1.07015361,118710.0,118700.0,1.13705]
[1755184241354,0.62156871,118710.0,118700.0,1.13705]
[1755184241560,0.90176871,118710.0,118700.0,0.86388]
[1755184242154,0.90176871,118710.0,118700.0,0.86688]
[1755184242352,0.90176871,118710.0,118700.0,1.0785]
[1755184243252,0.90176871,118710.0,118700.0,0.86688]
[1755184243447,0.90176871,118710.0,118700.0,1.0785]
[1755184243855,0.90176871,118710.0,118700.0,1.14005]
[1755184246654,0.53738001,118710.0,118700.0,1.83782612]
[1755184246854,0.42714724,118710.0,118700.0,1.92202192]
[1755184247151,0.06634724,118710.0,118700.0,1.83702612]
[1755184247353,0.0841887,118710.0,118700.0,1.14141]
[1755184247557,0.79257978,118710.0,118700.0,1.14141]
[1755184247961,0.51237978,118710.0,118700.0,1.83838612]
[1755184248166,0.42819108,118710.0,118700.0,1.83918612]
[1755184248467,0.4449746,118730.0,118720.0,0.04941]
[1755184248766,0.4449746,118730.0,118720.0,1.78367612]
[1755184249360,0.4449746,118730.0,118720.0,1.0867]
[1755184249559,0.3608,118730.0,118720.0,1.0867]
[1755184249754,0.0841746,118730.0,118720.0,0.87608]
[1755184249960,0.0841746,118730.0,118720.0,1.57505612]
[1755184250368,0.0841746,118730.0,118720.0,1.78667612]
[1755184250868,0.15315028,118730.0,118720.0,1.78667612]
[1755184251161,0.45917087,118730.0,118720.0,1.0897]
[1755184251468,0.81997087,118730.0,118720.0,1.0897]
[1755184251871,0.53977087,118730.0,118720.0,1.0897]
[1755184252758,0.81997087,118730.0,118720.0,1.0897]
[1755184253463,1.63774699,118730.0,118720.0,0.003]
[1755184255467,0.94077087,118730.0,118720.0,0.003]
[1755184255665,1.63774699,118730.0,118720.0,0.003]
[1755184255963,1.51774699,118730.0,118720.0,0.003]
[1755184256270,0.81997087,118730.0,118720.0,0.003]
[1755184256473,0.92997087,118730.0,118720.0,0.003]
[1755184256770,0.81997087,118730.0,118720.0,1.08091]
[1755184257463,0.53977087,118730.0,118720.0,1.77788612]
[1755184259361,0.53977087,118730.0,118720.0,1.08091]
[1755184259561,0.53977087,118730.0,118720.0,1.77788612]
[1755184259962,0.45559627,118730.0,118720.0,1.77868612]
[1755184260162,0.45559627,118730.0,118720.0,1.94714212]
[1755184260464,0.72043541,118750.0,118740.0,0.20723]
[1755184260776,0.96884541,118750.0,118740.0,1.07551]
[1755184261073,0.88467821,118750.0,118740.0,1.07551]
[1755184261571,0.88467821,118750.0,118740.0,1.77248612]
[1755184261867,0.95150125,118750.0,118740.0,1.77248612]
[1755184262064,0.95250125,118750.0,118740.0,1.77248612]
[1755184262269,0.95250125,118750.0,118740.0,1.07551]
[1755184262468,0.95250125,118750.0,118740.0,1.77248612]
[1755184263161,0.89222984,118750.0,118740.0,1.77248612]
[1755184263857,0.89222984,118750.0,118740.0,1.72544612]
[1755184264071,0.89222984,118750.0,118740.0,1.02847]
[1755184264570,0.3794474,118740.0,118730.0,0.20723]
[1755184264771,0.3794474,118740.0,118730.0,1.07663]
[1755184264772,0.7402474,118740.0,118730.0,1.07663]
[1755184265170,0.7402474,118740.0,118730.0,0.16019]
[1755184265364,0.04687,118720.0,118710.0,1.45630482]
[1755184265564,0.5112123,118730.0,118710.0,2.40825072]
[1755184265869,0.5580823,118730.0,118720.0,0.20723]
[1755184266069,0.5580823,118730.0,118720.0,0.90420612]
[1755184266372,0.9188823,118730.0,118720.0,0.20723]
[1755184266568,0.9928023,118730.0,118720.0,0.16019]
[1755184266774,0.9928023,118730.0,118720.0,1.02747]
[1755184266969,0.9928023,118730.0,118720.0,1.07451]
[1755184267278,0.6320023,118730.0,118720.0,1.77148612]
[1755184268581,0.6320023,118730.0,118720.0,1.77448612]
[1755184268976,0.6320023,118730.0,118720.0,1.07751]
[1755184269477,0.6320023,118730.0,118720.0,1.77448612]
[1755184269877,0.3835923,118730.0,118720.0,1.77448612]
[1755184270085,0.6320023,118730.0,118720.0,1.77448612]
[1755184270265,0.6320023,118730.0,118720.0,1.07751]
[1755184270466,0.9936023,118730.0,118720.0,0.87004]
[1755184270665,0.9928023,118730.0,118720.0,0.87004]
[1755184270880,0.9928023,118730.0,118720.0,1.03023]
[1755184271576,0.9928023,118730.0,118720.0,1.07727]
[1755184271781,0.9928023,118730.0,118720.0,1.03023]
[1755184272080,0.9928023,118730.0,118720.0,0.87004]
[1755184272473,1.01865024,118730.0,118720.0,0.87004]
[1755184272775,1.71642636,118730.0,118720.0,0.86996]
[1755184272979,1.71789302,118730.0,118720.0,0.003]
[1755184273175,1.83789302,118730.0,118720.0,0.003]
[1755184273576,1.82789302,118730.0,118720.0,0.003]
[1755184273876,0.3794757,118700.0,118680.0,0.3608]
[1755184274083,0.5479001,118690.0,118680.0,0.21023]
[1755184274274,0.5479001,118690.0,118680.0,1.07603]
[1755184274581,0.5479001,118690.0,118680.0,2.57603]
[1755184274872,0.5479001,118690.0,118680.0,0.16319]
[1755184274873,0.93455176,118690.0,118680.0,0.16319]
[1755184275080,1.00030383,118690.0,118680.0,1.02743]